Cogmind - Beta 11 X11 @@@ ROGUE MODE // 2022.03.06 @ 11:56:43 Player: Yosh Result: Destroyed by B-86 Titan with Matter Neutralizer Performance ------------- Evolutions (6) 3000 Regions Visited (12) 2400 Robots Destroyed (167) 835 Value Destroyed (4343) 4343 Prototype IDs (9) 180 Alien Tech Used (0) 0 Bonus (695) 695 TOTAL SCORE: 11453 Bonus ------- Follower Combat Kills 448 Entered DSFs 500 Friendly Fire -253 Cogmind --------- Core Integrity 0/1150 Matter 290/300 Energy 310/310 System Corruption 8% Temperature Cool (9) Movement Core (600) Ox11 Location -4/Extension Parts ------- > --- POWER (1) -------- Reinforced Fission Core > --- PROPULSION (5) --- VTOL Module > --- UTILITY (11) ----- Medium Storage Unit Advanced Signal Interpreter Improved Melee Analysis Suite Advanced Melee Analysis Suite Advanced Melee Analysis Suite Microactuators Microactuators Graphene Brace Hacking Suite Hacking Suite > --- WEAPON (2) ------- (None) > --- INVENTORY (10) --- Light Antimatter Reactor Backup Power VII Backup Power VII Improved Coolant Injector Hardcell Cannon Grenade Launcher Power Maul Power Sword Peak State ------------ > --- POWER ------------ Backup Power VII > --- PROPULSION ------- Improved Flight Unit Field Propulsion Drive Field Propulsion Drive Field Propulsion Drive Field Propulsion Drive > --- UTILITY ---------- Medium Storage Unit Improved Sensor Array Advanced Signal Interpreter Advanced Melee Analysis Suite Advanced Melee Analysis Suite Microactuators Graphene Brace Hacking Suite Hacking Suite Hacking Suite Hacking Suite > --- WEAPON ----------- Backup Laser VII Power Sword > --- INVENTORY -------- Micro Fission Core Backup Power VII Impulse Thruster Advanced Weight Redist. System Advanced Melee Analysis Suite Microactuators Actuator Array Improved Phase Shifter Grenade Launcher Power Sword [Rating: 92] Favorites ----------- Power Cooled Ion Engine Engine Cooled Ion Engine Power Core Light Nuclear Core Reactor Light Antimatter Reactor Propulsion Light Treads Treads Light Treads Leg Improved Aluminum Leg Wheel Armored Wheel Flight Unit Field Propulsion Drive Utility Hacking Suite Device Microactuators Storage Large Storage Unit Processor Advanced Melee Analysis Suite Hackware Hacking Suite Protection Hardened Medium Armor Plating Weapon Heavy Assault Rifle Energy Gun EM Pulse Gun Ballistic Gun Heavy Assault Rifle Launcher Rocket Launcher Impact Weapon Powered Hammer Slashing Weapon Phasing Sabre Build | -11 -10 -9 -9 -8 -7 -6 -5 -5 -4 -4 -4 -4 ------- Run | Scr Mat Mat Min Mat Fac Fac Fac DSF Fac Was Fac Ext Slots Evolved 12 | . . 2 . 2 2 2 2 . 2 . . . Power . | . . . . . . . . . . . . . Propulsion 3 | . . . . 1 1 1 . . . . . . Utility 9 | . . 2 . 1 1 1 2 . 2 . . . Weapon . | . . . . . . . . . . . . . Parts Attached 192 | 6 20 30 5 40 11 17 2 8 9 . 4 40 Power 29 | 1 3 1 . 8 2 5 . 3 1 . . 5 Engine 11 | 1 2 1 . 5 . 1 . 1 . . . . Core 17 | . 1 . . 3 2 4 . 2 1 . . 4 Reactor 1 | . . . . . . . . . . . . 1 Propulsion 47 | 2 5 6 1 9 4 3 . 4 1 . 2 10 Treads 15 | 2 1 3 . 1 . . . . . . . 8 Leg 2 | . . . . 2 . . . . . . . . Wheel 14 | . 4 2 1 6 . . . . . . . 1 Hover . | . . . . . . . . . . . . . Flight 16 | . . 1 . . 4 3 . 4 1 . 2 1 Utility 60 | 1 4 7 2 7 4 7 2 1 7 . 2 16 Device 27 | . . 1 1 3 1 4 1 1 6 . 1 8 Storage 4 | 1 2 . . . 1 . . . . . . . Processor 12 | . 2 1 1 1 1 1 1 . 1 . 1 2 Hackware 5 | . . . . 2 1 2 . . . . . . Protection 12 | . . 5 . 1 . . . . . . . 6 Artifact . | . . . . . . . . . . . . . Weapon 56 | 2 8 16 2 16 1 2 . . . . . 9 Energy Gun 13 | 2 5 4 . 2 . . . . . . . . Energy Cannon . | . . . . . . . . . . . . . Ballistic Gun 26 | . 3 10 1 11 . . . . . . . 1 Ballistic Cannon . | . . . . . . . . . . . . . Launcher 7 | . . 2 1 3 . . . . . . . 1 Special Weapon . | . . . . . . . . . . . . . Impact Weapon 2 | . . . . . 1 1 . . . . . . Slashing Weapon 8 | . . . . . . 1 . . . . . 7 Piercing Weapon . | . . . . . . . . . . . . . Special Melee Weapon . | . . . . . . . . . . . . . Unidentified Prototypes 7 | . . 2 . 4 . 1 . . . . . . Corrupted Parts 3 | . 2 . . . . . . . . . . 1 System Corruption 10 | . 8 . . . . . . . . . . 2 Parts Lost 74 | . 8 8 3 19 . 6 . . 1 . 4 25 Power 10 | . 2 . . 4 . 2 . . . . . 2 Propulsion 28 | . 2 2 1 6 . 3 . . . . 4 10 Utility 16 | . . 2 1 3 . . . . 1 . . 9 Weapon 20 | . 4 4 1 6 . 1 . . . . . 4 Highest Loss Streak 7 | . 4 4 3 6 . 4 . . 1 . 2 7 To Critical Strikes . | . . . . . . . . . . . . . Average Slot Usage (%) 92 | . 96 98 98 85 98 89 76 90 93 94 89 85 Engine 5 | . 13 7 11 3 . . . 2 . . . . Core 2 | . . 3 . 4 7 5 5 1 5 5 5 3 Treads 10 | . 15 12 21 3 . . . . . . . 11 Wheel 6 | . 11 9 . 14 . . . . . . . . Flight 4 | . . . . . 29 24 11 26 26 26 21 2 Device 5 | . . . . 7 6 6 11 11 17 21 15 13 Storage 9 | . 14 11 11 9 7 6 5 5 5 5 5 5 Processor 14 | . 11 20 11 14 7 6 11 11 11 10 14 15 Hackware 7 | . . . . 6 22 25 23 23 21 21 21 14 Protection 6 | . . 10 21 1 . . . . . . . 6 Energy Gun 3 | . 12 4 . 5 . . . . . . . . Ballistic Gun 11 | . 14 16 21 11 8 5 . . . . . . Slashing Weapon 1 | . . . . . . . 5 5 5 5 5 8 Naked Turns . | . . . . . . . . . . . . . Heaviest Build 53 | 14 28 45 45 41 20 22 19 23 26 22 22 53 Greatest Support 139 | 40 40 40 40 38 20 27 19 42 35 35 35 139 Greatest Overweight (x) 13 | . 1 3 3 7 . 1 . 1 . . 1 13 Average Overweight (x) . | . . 1 1 1 . . . . . . . . Largest Inventory Capacity 15 | 8 15 15 15 15 15 10 10 10 10 10 10 10 Average Capacity 12 | 7 11 15 15 15 10 10 10 10 10 10 10 10 Most Carried 15 | 4 12 15 15 15 14 10 10 10 10 10 10 10 Average Carried 12 | 3 9 14 14 14 9 9 8 8 9 9 9 9 Final Capacity 15 | 8 15 15 15 15 10 10 10 10 10 10 10 10 Final Carried 15 | 4 12 15 15 14 10 10 8 10 10 10 10 8 Class Distribution -------------------- 42% | Scavenger-Mutant 35% | Mutant 11% | Hacker-Sprinter 4% | Hacker-Mutant Dominant Class ---------------- Mutant | -10/Materials Mutant | -9/Materials Mutant | -9/Mines Scavenger-Mutant | -8/Materials Hacker-Sprinter | -7/Factory Hacker-Sprinter | -6/Factory Hacker-Mutant | -5/Factory Hacker-Mutant | -5/DSF Hacker-Sprinter | -4/Factory Hacker-Sprinter | -4/Waste Hacker-Ninja | -4/Factory Scavenger-Mutant | -4/Extension Resources | -11 -10 -9 -9 -8 -7 -6 -5 -5 -4 -4 -4 -4 ----------- Run | Scr Mat Mat Min Mat Fac Fac Fac DSF Fac Was Fac Ext Matter Collected 3579 | 260 460 717 229 923 39 115 . 139 62 . 171 464 Remotely . | . . . . . . . . . . . . . Salvage Created 6245 | . 760 1574 318 1729 69 300 . 136 62 . 358 939 Parts 373 | . 53 115 24 83 1 9 . 5 5 . 22 56 Haulers Intercepted 14 | . 2 5 . 4 . 1 . . . . 2 . Recyclers Shooed 2 | . . 1 . . . 1 . . . . . . Parts Field Recycled . | . . . . . . . . . . . . . Retrieved Matter . | . . . . . . . . . . . . . Parts Self-Destructed . | . . . . . . . . . . . . . Prevented . | . . . . . . . . . . . . . Kills | -11 -10 -9 -9 -8 -7 -6 -5 -5 -4 -4 -4 -4 ------- Run | Scr Mat Mat Min Mat Fac Fac Fac DSF Fac Was Fac Ext Combat Hostiles Destroyed 106 | . 16 30 7 33 . . . 1 . . 2 17 Melee 16 | . . . . . . . . 1 . . 2 13 Guns 61 | . 15 19 5 22 . . . . . . . . AOE 28 | . 1 10 2 11 . . . . . . . 4 Classes Destroyed 16 | . 5 6 1 . . . . 1 . . 1 2 Worker 4 | . . 1 1 1 1 . . . . . . . Builder 11 | . . 2 1 . . . . . 3 . 3 2 Tunneler 4 | . . 1 2 1 . . . . . . . . Hauler 14 | . 2 5 . 4 . 1 . . . . 2 . Recycler 6 | . . 1 1 3 . 1 . . . . . . Operator 11 | . 3 5 . 2 . 1 . . . . . . Watcher 10 | . 2 4 . 2 1 1 . . . . . . Swarmer 39 | . 5 12 3 11 . . . . . . . 8 Grunt 46 | . 11 9 3 18 . . . . . . . 5 Brawler 1 | . . 1 . . . . . . . . . . Duelist 2 | . . . 1 1 . . . . . . . . Sentry 12 | . . 8 . 3 . . . . . . . 1 Specialist 1 | . . . . . . . . 1 . . . . Hunter 2 | . . . . . . . . . . . . 2 Programmer 2 | . . . . . . . . . . . 2 . Behemoth 1 | . . . . . . . . . . . . 1 Thug 1 | . . . . . . . . . . . . 1 Best Kill Streak 14 | . 3 14 6 8 1 1 . 1 3 . 6 7 Combat Bots Only 7 | . 3 7 3 7 . . . 1 . . 2 6 Max Kills in Single Turn 5 | . 2 5 3 3 1 1 . 1 1 . 1 2 Gunslinging 1 | . 1 . . . . . . . . . . . Exploded 4 | . 1 4 1 3 . . . . . . . 2 Melee 1 | . . . . . . . . 1 . . 1 1 Uniques/NPCs Destroyed . | . . . . . . . . . . . . . Combat | -11 -10 -9 -9 -8 -7 -6 -5 -5 -4 -4 -4 -4 -------- Run | Scr Mat Mat Min Mat Fac Fac Fac DSF Fac Was Fac Ext Damage Taken 11708 | . 1137 1431 716 2314 51 851 . 170 24 . 439 4575 Core 2452 | . 223 220 53 325 6 318 . 138 . . 165 1004 Absorbed by Shields . | . . . . . . . . . . . . . Reduced by Siege Mode 27 | . . . . . . . . . . . . 27 Regen/Repaired (Parts) 232 | . . 28 . 204 . . . . . . . . Core Remaining (%) 61 | 100 10 . 31 40 99 62 . 86 . . . . Volleys Fired 413 | . 90 130 29 131 4 20 . . . . . 9 Largest 2 | . 2 2 2 2 2 1 . . . . . 1 Hottest 90 | . 80 90 46 80 43 20 . . . . . 33 Shots Fired 724 | . 167 235 55 230 8 20 . . . . . 9 Gun 705 | . 167 231 52 222 8 20 . . . . . 5 Cannon . | . . . . . . . . . . . . . Launcher 19 | . . 4 3 8 . . . . . . . 4 Special . | . . . . . . . . . . . . . Kinetic 501 | . 84 172 52 160 8 20 . . . . . 5 Thermal 88 | . 25 1 . 62 . . . . . . . . Explosive 19 | . . 4 3 8 . . . . . . . 4 Electromagnetic 116 | . 58 58 . . . . . . . . . . Robot Hit Streak 28 | . 14 16 9 28 1 4 . . . . . 2 Robot Miss Streak 6 | . 3 6 4 4 3 2 . . . . . 5 Penetration Max . | . . . . . . . . . . . . . Secondary Targets 12 | . 3 3 1 5 . . . . . . . . Max Gunslinging Chain 1 | . 1 1 1 1 . . . . . . . . Shots Hit Robots 572 | . 111 160 32 164 3 14 . 2 3 . 12 71 Core Hits 275 | . 41 76 16 85 4 12 . 1 1 . 6 33 Critical Kills 1 | . . 1 . . . . . . . . . . Critical Parts Destroyed 3 | . . 1 . 1 1 . . . . . . . Critical Strikes 24 | . . 5 . 8 1 . . . . . 1 9 Burn 6 | . . . . 6 . . . . . . . . Destroy 4 | . . 2 . 2 . . . . . . . . Corrupt 3 | . . 3 . . . . . . . . . . Smash 1 | . . . . . 1 . . . . . . . Sever 10 | . . . . . . . . . . . 1 9 Melee Attacks 142 | . . . . . 1 18 3 6 12 . 15 87 Impact 17 | . . . . . 1 16 . . . . . . Slashing 125 | . . . . . . 2 3 6 12 . 15 87 Piercing . | . . . . . . . . . . . . . Sneak Attacks 13 | . . . . . . 2 . 1 3 . 5 2 Combat Hostiles 1 | . . . . . . . . 1 . . . . Follow-up Attacks 8 | . . . . . . . . . . . . 8 Damage Inflicted 14113 | . 1351 2796 581 3498 170 385 . 181 403 . 989 3759 Guns 6661 | . 1279 2153 455 2614 30 97 . . . . . 33 Cannons . | . . . . . . . . . . . . . Explosions 2223 | . 70 643 126 882 76 . . . . . . 426 Melee 5223 | . . . . . 64 288 . 181 403 . 989 3298 Ramming 6 | . 2 . . 2 . . . . . . . 2 Kinetic 4292 | . 494 1541 455 1642 30 97 . . . . . 33 Thermal 1434 | . 247 215 . 972 . . . . . . . . Explosive 1698 | . . 264 126 882 . . . . . . . 426 Electromagnetic 1460 | . 608 776 . . 76 . . . . . . . Impact 238 | . . . . . 64 174 . . . . . . Slashing 4985 | . . . . . . 114 . 181 403 . 989 3298 Piercing . | . . . . . . . . . . . . . Highest Corruption 8 | . 8 . . . . 3 . 2 . 6 6 8 Average Corruption 5 | . 4 . . . . 3 . 1 . 6 6 6 Corruption Purged . | . . . . . . . . . . . . . Corruption Blocked . | . . . . . . . . . . . . . Effects 77 | . 25 . . . . . . . . 1 6 45 Message Errors 15 | . 3 . . . . . . . . . 2 10 Matter Fused 9 | . 1 . . . . . . . . . . 8 Heat Flow Errors 18 | . 9 . . . . . . . . 1 . 8 Energy Discharges 18 | . 6 . . . . . . . . . . 12 Parts Rejected 2 | . 1 . . . . . . . . . 1 . Data Loss (minor) 7 | . 3 . . . . . . . . . 2 2 Data Loss (major) 4 | . . . . . . . . . . . 1 3 Misfires 2 | . 2 . . . . . . . . . . . Alerts 2 | . . . . . . . . . . . . 2 Overload Shots . | . . . . . . . . . . . . . Overflow Damage 632 | . . 17 . 29 64 . . 24 236 . 131 131 Projectiles . | . . . . . . . . . . . . . Explosions 70 | . . 17 . 29 . . . . . . . 24 Melee 562 | . . . . . 64 . . 24 236 . 131 107 Knockbacks . | . . . . . . . . . . . . . Impact . | . . . . . . . . . . . . . Kinetic . | . . . . . . . . . . . . . Secondary . | . . . . . . . . . . . . . Self-Inflicted Damage 166 | . 29 48 19 68 . . . . . . . 2 Shots 6 | . 1 1 1 2 . . . . . . . 1 Rammed 3 | . 2 . . . . . . . . . . 1 Targets Rammed 4 | . 2 . . 1 . . . . . . . 1 Kicked 1 | . . . . 1 . . . . . . . . Crushed . | . . . . . . . . . . . . . Highest Temperature 299 | . 299 198 29 287 10 6 . . . 158 . 265 Average Temperature 64 | . 94 34 8 67 5 3 . . . 78 . 94 Received Heat Transfer 2715 | . 420 588 240 1047 15 18 . . . . 9 378 Effects 2 | . . . . 2 . . . . . . . . Energy Bleed 1 | . . . . 1 . . . . . . . . Interference 1 | . . . . 1 . . . . . . . . Siege Activations 1 | . . . . . . . . . . . . 1 Total Turns 10 | . . . . . . . . . . . . 10 Longest Duration 10 | . . . . . . . . . . . . 10 Robots Corrupted 1 | . . 1 . . . . . . . . . . Combat Hostiles 1 | . . 1 . . . . . . . . . . Parts Fried 14 | . 4 8 . . 2 . . . . . . . Impact Corruptions 3 | . . . . . 3 . . . . . . . Robots Melted . | . . . . . . . . . . . . . Combat Hostiles . | . . . . . . . . . . . . . Parts Melted 4 | . 1 . . 3 . . . . . . . . Heat Transferred 3293 | . 500 425 . 2368 . . . . . . . . Parts Sabotaged . | . . . . . . . . . . . . . Parts Stolen . | . . . . . . . . . . . . . Parts Stripped . | . . . . . . . . . . . . . Power Chain Reactions 4 | . 1 3 . . . . . . . . . . Missiles Intercepted . | . . . . . . . . . . . . . Alert | -11 -10 -9 -9 -8 -7 -6 -5 -5 -4 -4 -4 -4 ------- Run | Scr Mat Mat Min Mat Fac Fac Fac DSF Fac Was Fac Ext Peak Influence 416 | . 229 416 301 402 242 352 172 170 215 75 202 371 Initial 166 | . . 44 135 17 90 118 166 120 88 75 52 88 Average 186 | . 125 283 131 175 179 220 168 146 158 75 130 181 Maximum Alert Level 2 | . 1 2 1 2 1 1 . . 1 . 1 1 Low Security (%) 60 | 100 84 23 84 61 76 44 100 100 76 100 96 59 Level 1 38 | . 15 71 15 37 23 55 . . 23 . 3 40 Level 2 1 | . . 4 . 1 . . . . . . . . Level 3 . | . . . . . . . . . . . . . Level 4 . | . . . . . . . . . . . . . Level 5 . | . . . . . . . . . . . . . High Security . | . . . . . . . . . . . . . Max Security . | . . . . . . . . . . . . . Squads Dispatched 20 | . 5 4 . 3 2 . . 1 2 . 2 1 Investigation 7 | . 2 . . 1 1 . . . 2 . 1 . Extermination . | . . . . . . . . . . . . . Reinforcement 13 | . 3 4 . 2 1 . . 1 . . 1 1 Assault . | . . . . . . . . . . . . . Garrison . | . . . . . . . . . . . . . Intercept . | . . . . . . . . . . . . . Searches Triggered . | . . . . . . . . . . . . . Construction Impeded 1 | . . . . . . . . . . . . 1 Haulers Reinforced . | . . . . . . . . . . . . . Active Scanning Responses . | . . . . . . . . . . . . . Cargo Convoy Interrupts . | . . . . . . . . . . . . . Stealth | -11 -10 -9 -9 -8 -7 -6 -5 -5 -4 -4 -4 -4 --------- Run | Scr Mat Mat Min Mat Fac Fac Fac DSF Fac Was Fac Ext Distress Signals 12 | . . 4 . 4 . . . . . . 2 2 Communications Jammed . | . . . . . . . . . . . . . Distress Signals . | . . . . . . . . . . . . . Times Spotted 240 | . 38 52 10 49 10 23 . 4 2 6 11 35 Peak Tracking Total 13 | . 4 5 3 7 5 13 . 3 1 6 8 6 Tactical Retreats 21 | . 1 3 . . 1 5 . 1 2 1 2 5 Traps | -11 -10 -9 -9 -8 -7 -6 -5 -5 -4 -4 -4 -4 ------- Run | Scr Mat Mat Min Mat Fac Fac Fac DSF Fac Was Fac Ext Traps Triggered 7 | . 1 . . . 2 1 . . 1 . . 2 Indirectly 2 | . . . . . 2 . . . . . . . Trap Hack Attempts . | . . . . . . . . . . . . . Triggered . | . . . . . . . . . . . . . Disarmed . | . . . . . . . . . . . . . Reprogrammed . | . . . . . . . . . . . . . Reused . | . . . . . . . . . . . . . Traps Extracted . | . . . . . . . . . . . . . Installed . | . . . . . . . . . . . . . Triggered . | . . . . . . . . . . . . . Machines | -11 -10 -9 -9 -8 -7 -6 -5 -5 -4 -4 -4 -4 ---------- Run | Scr Mat Mat Min Mat Fac Fac Fac DSF Fac Was Fac Ext Machines Disabled 12 | . . 5 . 2 3 . . 1 . . . 1 Max in Single Turn 3 | . . 2 . 1 3 . . 1 . . . 1 Garrison Access 3 | . . . . 1 . 2 . . . . . . Machines Sabotaged . | . . . . . . . . . . . . . Garrisons Compromised . | . . . . . . . . . . . . . Overloaded Fab Kills . | . . . . . . . . . . . . . Hacking | -11 -10 -9 -9 -8 -7 -6 -5 -5 -4 -4 -4 -4 --------- Run | Scr Mat Mat Min Mat Fac Fac Fac DSF Fac Was Fac Ext Machines Accessed 45 | . 4 9 . 8 3 7 1 . 6 . 2 5 Terminals 29 | . 2 7 . 4 2 4 1 . 3 . 1 5 Fabricators 4 | . . . . . 1 1 . . 1 . 1 . Repair Stations 4 | . . 1 . 1 . . . . 2 . . . Recycling Units 3 | . 2 . . 1 . . . . . . . . Scanalyzers 2 | . . 1 . 1 . . . . . . . . Garrison Access 3 | . . . . 1 . 2 . . . . . . Total Hacks 145 | . 14 35 . 28 11 21 1 . 16 . 11 8 Successful 97 | . 11 17 . 20 8 16 1 . 10 . 9 5 Failed 48 | . 3 18 . 8 3 5 . . 6 . 2 3 Catastrophic 6 | . . 4 . . 1 . . . 1 . . . Database Lockouts . | . . . . . . . . . . . . . Manual 90 | . 11 23 . 16 9 12 . . 11 . 8 . Terminals 105 | . 11 29 . 14 9 14 1 . 10 . 9 8 Fabricators 11 | . . . . . 2 4 . . 3 . 2 . Repair Stations 9 | . . 3 . 3 . . . . 3 . . . Recycling Units 5 | . 3 . . 2 . . . . . . . . Scanalyzers 9 | . . 3 . 6 . . . . . . . . Garrison Access 6 | . . . . 3 . 3 . . . . . . Terminal Hacks 46 | . 4 8 . 6 4 8 1 . 4 . 6 5 Record 3 | . 1 1 . . . 1 . . . . . . Part Schematic 4 | . . . . . . 2 . . 1 . 1 . Prototype ID Bank 1 | . . 1 . . . . . . . . . . Open Door 5 | . . . . . . . . . . . . 5 Open DSF 1 | . . . . . . . 1 . . . . . Branch Access Points 4 | . . 1 . 1 . 1 . . . . 1 . Terminal Index 5 | . . 1 . . 1 1 . . 1 . 1 . Fabricator Index 2 | . . . . . . 1 . . . . 1 . Alert Level 3 | . . 1 . 1 . . . . . . 1 . Unreport Threat 4 | . . 2 . 2 . . . . . . . . Locate Traps 1 | . 1 . . . . . . . . . . . Recall Investigation 2 | . . . . . . . . . 2 . . . Recall Reinforcements 2 | . . . . . 2 . . . . . . . Hauler Manifests 5 | . 1 1 . 1 1 1 . . . . . . Registered Components 1 | . . . . . . 1 . . . . . . Zone Layout 3 | . 1 . . 1 . . . . . . 1 . Fabricator Hacks 8 | . . . . . 2 2 . . 2 . 2 . Network Status 2 | . . . . . . 2 . . . . . . Load Schematic 3 | . . . . . 1 . . . 1 . 1 . Build 3 | . . . . . 1 . . . 1 . 1 . Repair Station Hacks 7 | . . 2 . 2 . . . . 3 . . . Scan Component 2 | . . 1 . 1 . . . . . . . . Repair 2 | . . 1 . 1 . . . . . . . . Refit 3 | . . . . . . . . . 3 . . . Recycling Unit Hacks 1 | . 1 . . . . . . . . . . . Report Inventory 1 | . 1 . . . . . . . . . . . Scanalyzer 9 | . . 3 . 6 . . . . . . . . Insert Component 4 | . . 1 . 3 . . . . . . . . Analyze 5 | . . 2 . 3 . . . . . . . . Garrison Access Hacks 3 | . . . . 1 . 2 . . . . . . Seal Access 3 | . . . . 1 . 2 . . . . . . Unauthorized Hacks 23 | . 6 4 . 5 2 4 . . 1 . 1 . Terminals 19 | . 4 4 . 4 2 3 . . 1 . 1 . Track 3 | . 1 . . 1 . 1 . . . . . . Assimilate 2 | . . 1 . . . 1 . . . . . . Botnet 11 | . 2 2 . 2 2 1 . . 1 . 1 . Operators 3 | . 1 1 . 1 . . . . . . . . Fabricators 1 | . . . . . . 1 . . . . . . Prioritize 1 | . . . . . . 1 . . . . . . Repair Stations . | . . . . . . . . . . . . . Recycling Units 3 | . 2 . . 1 . . . . . . . . Tunnel 3 | . 2 . . 1 . . . . . . . . Scanalyzers . | . . . . . . . . . . . . . Garrison Access . | . . . . . . . . . . . . . Data Cores Recovered . | . . . . . . . . . . . . . Used . | . . . . . . . . . . . . . Hacking Detections 33 | . 2 8 . 5 3 6 . . 5 . 2 2 Full Trace Events 4 | . . . . . 1 . . . 2 . 1 . Feedback Events . | . . . . . . . . . . . . . Feedback Blocked . | . . . . . . . . . . . . . Robot Schematics Acquired . | . . . . . . . . . . . . . Robots Built . | . . . . . . . . . . . . . Authchips . | . . . . . . . . . . . . . Time . | . . . . . . . . . . . . . Total Robot Build Rating . | . . . . . . . . . . . . . Part Schematics Acquired 8 | . . 1 . 3 . 2 . . 1 . 1 . Parts Built 4 | . . . . . 1 . . . 1 . 2 . Authchips . | . . . . . . . . . . . . . Time 173 | . . . . . 73 . . . 58 . 42 . Total Part Build Rating 18 | . . . . . 3 . . . 7 . 8 . Parts Repaired 2 | . . 1 . 1 . . . . . . . . Time 76 | . . 38 . 38 . . . . . . . . Parts Recycled . | . . . . . . . . . . . . . Recycled Matter . | . . . . . . . . . . . . . Retrieved Matter . | . . . . . . . . . . . . . Retrieved Components . | . . . . . . . . . . . . . Parts Scanalyzed 4 | . . 1 . 3 . . . . . . . . Part Schematics Acquired 4 | . . 1 . 3 . . . . . . . . Parts Damaged 1 | . . . . 1 . . . . . . . . Bothacking | -11 -10 -9 -9 -8 -7 -6 -5 -5 -4 -4 -4 -4 ------------ Run | Scr Mat Mat Min Mat Fac Fac Fac DSF Fac Was Fac Ext Used RIF Installer . | . . . . . . . . . . . . . Robots Hacked . | . . . . . . . . . . . . . Non-combat . | . . . . . . . . . . . . . Combat . | . . . . . . . . . . . . . Robot Hacks Applied . | . . . . . . . . . . . . . Relay Couplers Released 2 | . . . . . . 2 . . . . . . Machine Destruction 2 | . . . . . . 2 . . . . . . Fabnet Peak Effective % . | . . . . . . . . . . . . . Robots Rewired 6 | . . . . . . . . . . . . 6 Allies Hacked . | . . . . . . . . . . . . . Hacks Repelled . | . . . . . . . . . . . . . Allies | -11 -10 -9 -9 -8 -7 -6 -5 -5 -4 -4 -4 -4 -------- Run | Scr Mat Mat Min Mat Fac Fac Fac DSF Fac Was Fac Ext Total Allies 16 | . . 1 . . . 1 . . . . . 14 Largest Group 6 | . . 1 . . . 1 . . . . . 6 Highest-Rated Group 229 | . . 10 . . . 26 . . . . . 229 Highest-Rated Ally 51 | . . 10 . . . 26 . . . . . 51 Total Orders . | . . . . . . . . . . . . . Ally Attacks 58 | . . . . . . . . . . . . 58 Total Damage 1990 | . . . . . . . . . . . . 1990 Kills 12 | . . . . . . . . . . . . 12 Allies Corrupted . | . . . . . . . . . . . . . Allies Melted . | . . . . . . . . . . . . . Intel | -11 -10 -9 -9 -8 -7 -6 -5 -5 -4 -4 -4 -4 ------- Run | Scr Mat Mat Min Mat Fac Fac Fac DSF Fac Was Fac Ext Robot Analysis Total . | . . . . . . . . . . . . . Derelict Logs Recovered 3 | . . . 3 . . . . . . . . . Drone Launches . | . . . . . . . . . . . . . Drone Recoveries . | . . . . . . . . . . . . . Exploration | -11 -10 -9 -9 -8 -7 -6 -5 -5 -4 -4 -4 -4 ------------- Run | Scr Mat Mat Min Mat Fac Fac Fac DSF Fac Was Fac Ext Turns Passed 8716 | 120 1212 1969 1176 1329 177 576 40 91 234 71 170 1551 Spaces Moved 6160 | 63 657 958 445 648 285 1197 82 117 551 178 246 733 Core 41 | 1 . . . 4 . . . 27 . . . 9 Treads 1670 | 62 282 342 395 4 . . . . . . . 585 Legs 69 | . . . . 69 . . . . . . . . Wheels 1618 | . 375 616 50 571 . . . . . . . 6 Hover . | . . . . . . . . . . . . . Flight 2762 | . . . . . 285 1197 82 90 551 178 246 133 Fastest Speed 27 | 50 90 105 125 86 29 27 37 32 32 32 32 42 Average Speed 99 | 158 126 148 227 118 29 31 37 49 32 32 35 154 Slowest Speed 700 | 160 160 240 240 400 29 107 37 100 34 32 122 700 Overloaded Moves . | . . . . . . . . . . . . . Propulsion Burnouts . | . . . . . . . . . . . . . Robots Hopped 17 | . . . . . 1 12 . 2 . . 2 . Cave-ins Triggered . | . . . . . . . . . . . . . Exploration Rate (%) 41 | 6 71 68 84 46 5 32 2 70 12 85 10 50 Regions Visited 12 Branch Regions 2 Pre-discovered Areas 3 | . 2 . . 1 . . . . . . . . Known Exits Taken 4 | . . 1 . 1 . . 1 . . . 1 . Unknown Exits Taken 5 | 1 1 . 1 . 1 1 . . . . . . Scrap Searched 1 | . . . 1 . . . . . . . . . Spaces Dug 44 | . . 6 . . . 15 3 . 9 . 2 9 Terrain Destroyed 183 | . 3 34 31 52 . 15 3 . 9 . 2 34 Melee 38 | . . . . . . 15 3 . 9 . 2 9 Projectile 1 | . . . . . . . . . . . . 1 AOE 144 | . 3 34 31 52 . . . . . . . 24 Terrain Rammed . | . . . . . . . . . . . . . Walls Destroyed . | . . . . . . . . . . . . . Machines Disabled . | . . . . . . . . . . . . . Actions | -11 -10 -9 -9 -8 -7 -6 -5 -5 -4 -4 -4 -4 --------- Run | Scr Mat Mat Min Mat Fac Fac Fac DSF Fac Was Fac Ext Total 7906 | 81 884 1293 553 1005 372 1340 86 137 594 191 304 1066 Wait 727 | 8 84 114 74 151 56 69 . 4 1 12 36 118 Move 6117 | 62 656 957 444 647 282 1174 81 112 551 177 241 733 Hop 15 | . . . . . 1 10 . 2 . . 2 . Pick Up 111 | 5 17 30 1 14 6 14 . 2 5 1 3 13 Fast Attach 78 | 5 7 10 2 21 1 5 . 4 5 . 1 17 Attach 54 | 1 7 8 . 11 7 3 2 . 3 . 1 11 Detach 23 | . 3 4 . 4 4 2 . 1 3 . . 2 Swap 60 | . 6 12 3 8 3 9 . 4 1 . 2 12 Drop 109 | . 9 28 . 17 7 16 . 2 13 1 3 13 Fire 413 | . 90 130 29 131 4 20 . . . . . 9 Melee 132 | . . . . . 1 18 3 6 12 . 15 77 Ram . | . . . . . . . . . . . . . Kick 1 | . . . . 1 . . . . . . . . Crush 3 | . 2 . . . . . . . . . . 1 Escape Stasis 36 | . . . . . . . . . . . . 36 Rewire 27 | . 3 . . . . . . . . . . 24 Trap . | . . . . . . . . . . . . . Miscellaneous . | . . . . . . . . . . . . . Route ------- -11/Scrapyard -10/Materials (discovered 3 exits: *Mat / *Min x2) -9/Materials (discovered 4 exits: *Mat x3 / *Min) -9/Mines (discovered 2 exits: *Mat x2) -8/Materials -7/Factory -6/Factory (discovered 4 exits: *Fac x2 / Low x2) -5/Factory -5/DSF -4/Factory -4/Waste -4/Factory (discovered 4 exits: Upp x2 / *Ext x2) -4/Extension History --------- Turn | Location | Event 29 | -11/Scrapyard | Discovered new exit (range 14) 121 | -11/Scrapyard | Entered Materials 121 | -10/Materials | Discovered new exit (range 8) 310 | -10/Materials | Build established: Mutant 472 | -10/Materials | Identified exit to Mines 711 | -10/Materials | Build established: Scavenger-Mutant 721 | -10/Materials | Core integrity fell below 50% 738 | -10/Materials | Discovered new exit (range 11) 761 | -10/Materials | Lost 4 parts (2n2w) 898 | -10/Materials | Discovered exit to Mines (range 11) 1061 | -10/Materials | Core integrity fell below 20% 1104 | -10/Materials | Build established: Mutant 1333 | -10/Materials | Entered another Materials area 1333 | -9/Materials | Evolved 2 slots: Utility x2 1421 | -9/Materials | Destroyed 7 combat bots 1705 | -9/Materials | Discovered new exit (range 15) 1896 | -9/Materials | Lost 4 parts (1n2u1w) 2041 | -9/Materials | Discovered new exit (range 8) 2085 | -9/Materials | Discovered new exit (range 14) 2087 | -9/Materials | Identified exit to Mines 2272 | -9/Materials | Discovered new exit (range 9) 2572 | -9/Materials | Lost 3 parts (1n2w) 2839 | -9/Materials | Build established: Scavenger-Mutant 2847 | -9/Materials | Core integrity fell below 50% 3000 | -9/Materials | Repaired Lgt. Nuclear Core 3302 | -9/Materials | Entered Mines 3353 | -9/Mines | Learned Materials trap positions 3506 | -9/Mines | Learned Materials stockpile data 3565 | -9/Mines | Build established: Mutant 3926 | -9/Mines | Discovered new exit (range 3) 4247 | -9/Mines | Discovered new exit (range 5) 4390 | -9/Mines | Build established: Scavenger-Mutant 4435 | -9/Mines | Lost 3 parts (1n1u1w) 4478 | -9/Mines | Entered Materials 4478 | -8/Materials | Evolved 2 slots: Propulsion x1, Utility x1 4479 | -8/Materials | Identified exit to Factory 4480 | -8/Materials | Loaded intel: 28 trap records 4523 | -8/Materials | Repaired Hrd. Medium Armor Plating? 4670 | -8/Materials | Destroyed 7 combat bots 4880 | -8/Materials | Lost 6 parts (1p3n1u1w) 5492 | -8/Materials | Core integrity fell below 50% 5541 | -8/Materials | Lost 4 parts (1p1n2w) 5733 | -8/Materials | Lost 6 parts (1p2n1u2w) 5807 | -8/Materials | Entered Factory 5807 | -7/Factory | Evolved 2 slots: Propulsion x1, Utility x1 5915 | -7/Factory | Fabricated Hacking Suite (x1) 5928 | -7/Factory | Discovered new exit (range 15) 5984 | -7/Factory | Entered another Factory area 5984 | -6/Factory | Evolved 2 slots: Propulsion x1, Utility x1 6023 | -6/Factory | Identified exit to Lower Caves 6115 | -6/Factory | Spotted B-75 Beast 6140 | -6/Factory | Build established: Hacker-Sprinter 6197 | -6/Factory | Discovered new exit (range 14) 6348 | -6/Factory | Discovered new exit (range 4) 6530 | -6/Factory | Lost 4 parts (1p2n1w) 6560 | -6/Factory | Entered another Factory area 6560 | -5/Factory | Evolved 2 slots: Utility x2 6600 | -5/Factory | Identified exit to DSF 6600 | -5/Factory | Entered DSF 6656 | -5/DSF | Additional patrols routed to DSF 6681 | -5/DSF | Discovered new exit (range 11) 6691 | -5/DSF | Identified exit to Factory 6691 | -5/DSF | Entered Factory 6691 | -4/Factory | Evolved 2 slots: Utility x2 6816 | -4/Factory | Fabricated Imp. Cloaking Device? 6925 | -4/Factory | Sucked down chute 6925 | -4/Factory | Entered Waste 6932 | -4/Waste | Spotted C-40 Crusher 6933 | -4/Waste | Spotted C-40 Crusher 6940 | -4/Waste | EMP discharged 6955 | -4/Waste | Spotted C-40 Crusher 6957 | -4/Waste | Spotted C-40 Crusher 6958 | -4/Waste | Spotted C-40 Crusher 6958 | -4/Waste | Spotted C-40 Crusher 6975 | -4/Waste | Discovered new exit (range 16) 6995 | -4/Waste | Identified exit to Factory 6996 | -4/Waste | Entered Factory 7016 | -4/Factory | Identified exit to Upper Caves 7016 | -4/Factory | Identified exit to Extension 7086 | -4/Factory | Spotted B-86 Titan 7140 | -4/Factory | Fabricated Lyr. Light Armor Plating (x2) 7166 | -4/Factory | Entered Extension 7281 | -4/Extension | Disrupted transfer network 7365 | -4/Extension | Rescued a captive Derelict 7372 | -4/Extension | Rescued a captive Derelict 7372 | -4/Extension | Rescued a captive Derelict 7400 | -4/Extension | Rescued a captive Derelict 7401 | -4/Extension | Rescued a captive Derelict 7640 | -4/Extension | Rescued a captive Derelict 7685 | -4/Extension | Rescued a captive Derelict 7686 | -4/Extension | Rescued a captive Derelict 7829 | -4/Extension | Spotted B-86 Titan 7911 | -4/Extension | Build established: Scavenger-Mutant 8300 | -4/Extension | Lost 3 parts (2n1u) 8309 | -4/Extension | Core integrity fell below 50% 8341 | -4/Extension | Core integrity fell below 20% 8344 | -4/Extension | Destroyed B-86 Titan 8371 | -4/Extension | Lost 7 parts (1p2n3u1w) 8433 | -4/Extension | Spotted B-86 Titan 8477 | -4/Extension | Lost 3 parts (1n1u1w) 8717 | -4/Extension | Destroyed by B-86 Titan with Matter Neutralizer Last Messages --------------- 08690_ U-05 Engineer builds a Wall. 08691_ Y7HOWBMR0Z|OA|%C2%8HLSKKJSM 08692_ Penetrated by Slug. 08692_ Slug penetrates R-10 Processor. 08695_ Phasing Sabre destroyed. 08698_ Activated siege mode. 08698_ Hrd. Medium Armor Plating destroyed. 08699_ U-05 Engineer builds a Wall. 08701_ Penetrated by Slug. 08701_ Slug penetrates U-05 Engineer. 08701_ U-05 Engineer destroyed. 08707_ Hvy. Treads destroyed. 08707_ Knocked back. 08707_ Penetrated by Slug. 08707_ Slug penetrates Earth. 08710_ System corrupted: Heat flow error (+128). 08712_ Phasing Sabre destroyed. 08712_ Knocked back. 08712_ Penetrated by Slug. 08712_ Slug penetrates Earth. Map ----- +----------------------------------------------------+ | #?############# ########?????????????????????????? | | #????????######=########?????????????????????????? | | ?????????####T#[[ ##?????????????????????????? | | ?????????##=%[%[##### ##?????????????????????????? | | ?????????##![[#!##### ##?????????????????????????? | | ?????????#### #=##?## ##?????????????????????????? | | ?????????######!##?## ##?????????????????????????? | | ???????????####!##?## ##?????????????????????????? | | ?????????????## ##?## ##?????????????????????????? | | ?????????????## ##?## ##?????????????????????????? | | ?????????????## ##?## ##?????????????????????????? | | ?????????????## ##### ###????????????????????????? | | ?????????????## ##### ###????????????????????????? | | ??????????## ## # # ###????????????????????????? | | ??????????#####+#####]###????????????????????????? | | ??????????## * [# ###????????????????????????? | | ??????????## %! %+!###?##?????????????????????? | | ??????????## [ # ###? #?????????????????????? | | ??????????## # #### #?????????????????????? | | ??????????########### # #?????????????????????? | | ??????????######## #= # ###???????????????????? | | ???????????????######%####;#;#???#???????????????? | | ????????????????##;## ###%;# ### ###?????????????? | | ?????????????????##%"|% *!!| " ""#?????????????? | | ?????????????????## % % " " #?????????????? | | ??????????????????# R @ R #?????????????? | | #?????????????????#% %%% #?????????????? | | ################### #?????????????? | | % BB ???????? | | BB% ???????? | | % ????????? | | ????????? | | % ?????????? | | ################### #####?????????? | | ??????????????????# #?????????????? | | ??????????????????# #?????????????? | | ??????????????????# #?????????????? | | ??????????????????# #?????????????? | | ??????????????????######T#"""#######?????????????? | | ????????????????????????##???????????????????????? | | ?????????????????????????????????????????????????? | | | | | | | | | | | | | | | | | | | +----------------------------------------------------+ Best States ------------- Heat Dissipation 43 Energy Generation 25 Energy Capacity 315 Matter Stores 300 Matter Capacity 300 Sight Range 16 Robot Scan Range 16 Terrain Scan Range 16 Terrain Scan Density 10 Cloak Strength 3 Additional Mass Support 9 Armor Coverage 375 Melee Speed Boost 40 Phase Shifting 10 Evasion (%) 73 Targeting Accuracy 5 Melee Accuracy 22 Recoil Reduction 5 Offensive Hacking 40 Defensive Hacking 10 Item Schematics ----------------- Hacking Suite | -9/Materials | Scanalyzed Imp. Flight Unit | -8/Materials | Scanalyzed Adv. Weight Redist. System | -8/Materials | Scanalyzed Imp. Sensor Array | -8/Materials | Scanalyzed Imp. Cloaking Device | -6/Factory | Hacked Imp. Heavy Armor Plating | -6/Factory | Hacked Lyr. Light Armor Plating | -4/Factory | Hacked Structural Scanner | -4/Factory | Hacked Robot Schematics ------------------ None Fabricated ------------ Hacking Suite | x1 | -7/Factory Imp. Cloaking Device | x1 | -4/Factory Lyr. Light Armor Plating | x2 | -4/Factory Alien Tech Used ----------------- None Achievements -------------- None Challenges ------------ None Game ------ Seed MatterMediumShield Manual? 0 Play Time 01:56:15 Cumulative 43.7 hours Start 2022.03.06 @ 09:36:26 End 2022.03.06 @ 11:56:43 Sessions 1 Manual Loads 0 Difficulty Rogue Special Mode None Game No. 28 Rogue 28 Adventurer 0 Explorer 0 Win Type - Total 1 Types 1/0/0/0/0/0/0/0/0 Lore% 33 Gallery% 41 Achievement% 37 Wizard Run 0 Options --------- ASCII 1 Keyboard 1 Movement Vi Keybinds 0 Fullscreen 1 Font 18/X11 Map View 76x50 Tactical HUD 1 Map Filters NONE Filters NONE Steam 1 RUN: 2b7aa809-7388-464c-80e0-9bafcd0032ac